[Event "*** Titled Tuesday 3|2 Blitz (Late)"]
[Site "Chess.com"]
[Date "2016.11.01"]
[Round "8"]
[White "Maitreia"]
[Black "Kubas1010"]
[Result "0-1"]
[WhiteElo "2493"]
[BlackElo "2427"]
[TimeControl "180+2"]
[EndTime "18:50:29 PDT"]
[Termination "Kubas1010 won by resignation"]

1. c4 {[%clk 0:03:02]} 1... e6 {[%clk 0:03:00.6]} 2. g3 {[%clk 0:03:03.4]} 2...
d5 {[%clk 0:03:01.6]} 3. Nf3 {[%clk 0:03:04.6]} 3... dxc4 {[%clk 0:03:01.8]} 4.
Qa4+ {[%clk 0:03:05.1]} 4... Nd7 {[%clk 0:02:59.4]} 5. Qxc4 {[%clk 0:03:06.4]}
5... a6 {[%clk 0:03:00.2]} 6. a4 {[%clk 0:03:07.1]} 6... b5 {[%clk 0:03:00.5]}
7. Qc2 {[%clk 0:03:08]} 7... Bb7 {[%clk 0:03:00.3]} 8. Bg2 {[%clk 0:03:08.8]}
8... Ngf6 {[%clk 0:03:01.1]} 9. Nc3 {[%clk 0:03:04.8]} 9... b4 {[%clk
0:03:00.9]} 10. Nb1 {[%clk 0:03:04.4]} 10... c5 {[%clk 0:03:02.3]} 11. b3 {[%clk
0:03:04.3]} 11... Be7 {[%clk 0:03:02.5]} 12. Bb2 {[%clk 0:03:04.8]} 12... O-O
{[%clk 0:03:04.1]} 13. d3 {[%clk 0:03:04.7]} 13... Nd5 {[%clk 0:03:01.8]} 14.
Nbd2 {[%clk 0:03:05.2]} 14... Bf6 {[%clk 0:03:02.3]} 15. Nc4 {[%clk 0:03:00.3]}
15... Rc8 {[%clk 0:02:57.7]} 16. Nd6 {[%clk 0:02:51.7]} 16... Rc7 {[%clk
0:02:53.1]} 17. Nxb7 {[%clk 0:02:51.9]} 17... Rxb7 {[%clk 0:02:54.5]} 18. O-O
{[%clk 0:02:51.4]} 18... Bxb2 {[%clk 0:02:53.5]} 19. Qxb2 {[%clk 0:02:53.3]}
19... Qf6 {[%clk 0:02:54.5]} 20. Qxf6 {[%clk 0:02:29.4]} 20... gxf6 {[%clk
0:02:54.5]} 21. Rfc1 {[%clk 0:02:31.3]} 21... Nc3 {[%clk 0:02:53.5]} 22. Kf1
{[%clk 0:02:28.7]} 22... Rb6 {[%clk 0:02:53.9]} 23. Nd2 {[%clk 0:02:28.4]} 23...
Ne5 {[%clk 0:02:49.2]} 24. Nb1 {[%clk 0:02:24.6]} 24... Nxb1 {[%clk 0:02:44.3]}
25. Raxb1 {[%clk 0:02:26.5]} 25... Rc8 {[%clk 0:02:45.3]} 26. Rc2 {[%clk
0:02:15]} 26... Rd6 {[%clk 0:02:22.8]} 27. Rbc1 {[%clk 0:02:13.8]} 27... Nd7
{[%clk 0:02:23.6]} 28. d4 {[%clk 0:02:02.4]} 28... Rxd4 {[%clk 0:02:22]} 29. Bb7
{[%clk 0:02:03.7]} 29... Rc7 {[%clk 0:02:17.2]} 30. Bxa6 {[%clk 0:02:04.9]}
30... Kf8 {[%clk 0:02:16.6]} 31. Bb5 {[%clk 0:01:56.9]} 31... Ke7 {[%clk
0:02:16.9]} 32. Ke1 {[%clk 0:01:37.1]} 32... Rd5 {[%clk 0:02:08.5]} 33. Rc4
{[%clk 0:01:27.8]} 33... h5 {[%clk 0:01:56.8]} 34. Rxb4 {[%clk 0:01:26.4]} 34...
Ne5 {[%clk 0:01:40.1]} 35. Rh4 {[%clk 0:01:21.7]} 35... Ng6 {[%clk 0:01:40.4]}
36. Rhc4 {[%clk 0:01:19.3]} 36... Ne5 {[%clk 0:01:40.6]} 37. R4c3 {[%clk
0:01:19.8]} 37... Kd6 {[%clk 0:01:40.8]} 38. b4 {[%clk 0:01:10.6]} 38... c4
{[%clk 0:01:40.2]} 39. Bxc4 {[%clk 0:01:08.2]} 39... Rd4 {[%clk 0:01:38.7]} 40.
Bd3 {[%clk 0:00:48]} 40... Rxc3 {[%clk 0:01:38.5]} 41. Rxc3 {[%clk 0:00:49.9]}
41... Rxb4 {[%clk 0:01:38.5]} 42. Ra3 {[%clk 0:00:48]} 42... h4 {[%clk
0:01:24.7]} 43. gxh4 {[%clk 0:00:28.4]} 43... Rxh4 {[%clk 0:01:24.7]} 44. a5
{[%clk 0:00:29.5]} 44... Nxd3+ {[%clk 0:01:22.6]} 45. Rxd3+ {[%clk 0:00:16.8]}
45... Kc6 {[%clk 0:01:22.9]} 46. Rc3+ {[%clk 0:00:15.3]} 46... Kd6 {[%clk
0:01:08.6]} 47. Ra3 {[%clk 0:00:08]} 47... Rxh2 {[%clk 0:01:09.1]} 48. a6 {[%clk
0:00:09.5]} 48... Rh8 {[%clk 0:01:09.9]} 49. Kd2 {[%clk 0:00:07.2]} 49... Kc6
{[%clk 0:01:07.6]} 50. a7 {[%clk 0:00:05.4]} 50... Kb7 {[%clk 0:01:08.4]} 51.
Kd3 {[%clk 0:00:06.3]} 51... Rc8 {[%clk 0:00:55.2]} 52. Kd4 {[%clk 0:00:06.8]}
52... Ka8 {[%clk 0:00:51.4]} 53. f4 {[%clk 0:00:06.5]} 53... Rc7 {[%clk
0:00:52.6]} 54. e4 {[%clk 0:00:06.2]} 54... Rc6 {[%clk 0:00:51.5]} 55. Ra5
{[%clk 0:00:05.6]} 55... Rc7 {[%clk 0:00:50.7]} 56. e5 {[%clk 0:00:06.4]} 56...
Rd7+ {[%clk 0:00:29.5]} 57. Ke4 {[%clk 0:00:02.5]} 57... f5+ {[%clk 0:00:30]}
58. Kf3 {[%clk 0:00:04]} 58... Rxa7 {[%clk 0:00:31.1]} 59. Rxa7+ {[%clk
0:00:04]} 59... Kxa7 {[%clk 0:00:33]} 60. Kg3 {[%clk 0:00:05.5]} 60... Kb6
{[%clk 0:00:34]} 61. Kh4 {[%clk 0:00:07.4]} 61... Kc6 {[%clk 0:00:20.4]} 62. Kg5
{[%clk 0:00:09.3]} 62... Kd7 {[%clk 0:00:21.8]} 63. Kf6 {[%clk 0:00:11.2]} 63...
Ke8 {[%clk 0:00:23.2]} 64. Kg7 {[%clk 0:00:12.8]} 64... Ke7 {[%clk 0:00:24.6]}
65. Kh6 {[%clk 0:00:04.6]} 65... f6 {[%clk 0:00:25.9]} 66. exf6+ {[%clk
0:00:05]} 66... Kxf6 {[%clk 0:00:26.9]} 67. Kh5 {[%clk 0:00:06.4]} 67... e5
{[%clk 0:00:27.6]} 68. fxe5+ {[%clk 0:00:07]} 68... Kxe5 {[%clk 0:00:28.9]} 69.
Kh4 {[%clk 0:00:08.9]} 69... Ke4 {[%clk 0:00:30.4]} 70. Kg3 {[%clk 0:00:10.8]}
70... Ke3 {[%clk 0:00:31.9]} 71. Kg2 {[%clk 0:00:11.9]} 71... f4 {[%clk
0:00:31.6]} 72. Kf1 {[%clk 0:00:13.8]} 72... Kf3 {[%clk 0:00:32.6]} 73. Kg1
{[%clk 0:00:15.2]} 73... Ke2 {[%clk 0:00:33.8]} 0-1

[Event "*** Titled Tuesday 3|2 Blitz (Late)"]
[Site "Chess.com"]
[Date "2016.11.01"]
[Round "8"]
[White "Abrito99"]
[Black "NTBT_DHS"]
[Result "1-0"]
[WhiteElo "2369"]
[BlackElo "2495"]
[TimeControl "180+2"]
[EndTime "18:50:44 PDT"]
[Termination "Abrito99 won by checkmate"]

1. e4 {[%clk 0:03:02]} 1... g6 {[%clk 0:03:00.9]} 2. d4 {[%clk 0:02:58.8]} 2...
Bg7 {[%clk 0:03:02.4]} 3. Nf3 {[%clk 0:02:59.6]} 3... a6 {[%clk 0:03:03.6]} 4.
a4 {[%clk 0:03:00]} 4... b6 {[%clk 0:03:04.1]} 5. c3 {[%clk 0:02:52.1]} 5... Bb7
{[%clk 0:03:05.1]} 6. Bd3 {[%clk 0:02:53.6]} 6... e6 {[%clk 0:03:06.3]} 7. O-O
{[%clk 0:02:54.1]} 7... d6 {[%clk 0:03:06.1]} 8. Nbd2 {[%clk 0:02:55.3]} 8...
Nd7 {[%clk 0:03:07.2]} 9. Qe2 {[%clk 0:02:56.5]} 9... Ne7 {[%clk 0:03:07.9]} 10.
Ne1 {[%clk 0:02:46.2]} 10... g5 {[%clk 0:03:02.3]} 11. Nc4 {[%clk 0:02:29.1]}
11... Ng6 {[%clk 0:02:55.5]} 12. Qh5 {[%clk 0:02:11.6]} 12... Nf4 {[%clk
0:02:51.8]} 13. Bxf4 {[%clk 0:02:10.2]} 13... gxf4 {[%clk 0:02:53.1]} 14. Nf3
{[%clk 0:01:46.1]} 14... Kf8 {[%clk 0:02:22.9]} 15. Rad1 {[%clk 0:01:03.5]}
15... Nf6 {[%clk 0:02:19.5]} 16. Qg5 {[%clk 0:01:02.7]} 16... Nxe4 {[%clk
0:02:19.6]} 17. Qxf4 {[%clk 0:01:03.2]} 17... Nf6 {[%clk 0:02:11.9]} 18. Ng5
{[%clk 0:01:00.4]} 18... h6 {[%clk 0:02:12.6]} 19. Nf3 {[%clk 0:00:58.6]} 19...
Nd5 {[%clk 0:02:10.2]} 20. Qg3 {[%clk 0:00:57.1]} 20... Qf6 {[%clk 0:02:05.8]}
21. Ne3 {[%clk 0:00:55.9]} 21... Qf4 {[%clk 0:01:59.8]} 22. Qh3 {[%clk
0:00:46.7]} 22... Ne7 {[%clk 0:01:42.6]} 23. Nd2 {[%clk 0:00:38.6]} 23... h5
{[%clk 0:01:39.2]} 24. Qg3 {[%clk 0:00:34.5]} 24... Qf6 {[%clk 0:01:32.2]} 25.
Ne4 {[%clk 0:00:32.7]} 25... Qh6 {[%clk 0:01:33]} 26. Nxd6 {[%clk 0:00:23.4]}
26... cxd6 {[%clk 0:01:33.1]} 27. Qxd6 {[%clk 0:00:25.3]} 27... Bc6 {[%clk
0:01:09.9]} 28. Nc4 {[%clk 0:00:20.5]} 28... Qg5 {[%clk 0:01:08.7]} 29. f3
{[%clk 0:00:20.7]} 29... Qd5 {[%clk 0:01:03.5]} 30. Qb4 {[%clk 0:00:20.3]} 30...
Rb8 {[%clk 0:00:57.3]} 31. Nxb6 {[%clk 0:00:19.4]} 31... Qd8 {[%clk 0:00:55.3]}
32. a5 {[%clk 0:00:20.9]} 32... Bf6 {[%clk 0:00:47.3]} 33. Qc5 {[%clk
0:00:21.1]} 33... Kg7 {[%clk 0:00:40.2]} 34. Bxa6 {[%clk 0:00:21.8]} 34... Bd5
{[%clk 0:00:30]} 35. Bd3 {[%clk 0:00:21.3]} 35... h4 {[%clk 0:00:30.4]} 36. Nxd5
{[%clk 0:00:17.1]} 36... Qxd5 {[%clk 0:00:29]} 37. Qxd5 {[%clk 0:00:10]} 37...
Nxd5 {[%clk 0:00:29.7]} 38. Rf2 {[%clk 0:00:10.6]} 38... Rhc8 {[%clk 0:00:23.5]}
39. g3 {[%clk 0:00:10.4]} 39... hxg3 {[%clk 0:00:22.7]} 40. hxg3 {[%clk
0:00:12.3]} 40... Be7 {[%clk 0:00:23.7]} 41. Re2 {[%clk 0:00:12.5]} 41... Bd6
{[%clk 0:00:24.2]} 42. Kg2 {[%clk 0:00:12.9]} 42... Kf6 {[%clk 0:00:25.2]} 43.
Be4 {[%clk 0:00:14.2]} 43... Rg8 {[%clk 0:00:25.6]} 44. Bxd5 {[%clk 0:00:11.4]}
44... Rxg3+ {[%clk 0:00:25.7]} 45. Kf2 {[%clk 0:00:13.1]} 45... exd5 {[%clk
0:00:27.1]} 46. a6 {[%clk 0:00:14.3]} 46... Rgg8 {[%clk 0:00:27.4]} 47. Ra1
{[%clk 0:00:14.8]} 47... Ra8 {[%clk 0:00:27.4]} 48. Ra5 {[%clk 0:00:16.5]} 48...
Bg3+ {[%clk 0:00:28.9]} 49. Kf1 {[%clk 0:00:16.8]} 49... Rgd8 {[%clk 0:00:29.8]}
50. b4 {[%clk 0:00:17.1]} 50... Bc7 {[%clk 0:00:30.2]} 51. Rc5 {[%clk
0:00:16.5]} 51... Bd6 {[%clk 0:00:27.1]} 52. Rc6 {[%clk 0:00:17.6]} 52... Kf5
{[%clk 0:00:27.1]} 53. b5 {[%clk 0:00:18.1]} 53... Kf4 {[%clk 0:00:27.8]} 54.
Kf2 {[%clk 0:00:14]} 54... f5 {[%clk 0:00:29]} 55. Ra2 {[%clk 0:00:13.3]} 55...
Be7 {[%clk 0:00:25.1]} 56. b6 {[%clk 0:00:13.5]} 56... Bh4+ {[%clk 0:00:26.8]}
57. Ke2 {[%clk 0:00:13.4]} 57... Re8+ {[%clk 0:00:28.1]} 58. Kd2 {[%clk
0:00:15]} 58... Kxf3 {[%clk 0:00:27.3]} 59. b7 {[%clk 0:00:12.7]} 59... Rab8
{[%clk 0:00:26.3]} 60. Kc1 {[%clk 0:00:12.6]} 60... Bg5+ {[%clk 0:00:24.5]} 61.
Kb2 {[%clk 0:00:13.4]} 61... f4 {[%clk 0:00:15.1]} 62. Rb6 {[%clk 0:00:14]}
62... Bd8 {[%clk 0:00:12.1]} 63. a7 {[%clk 0:00:09.4]} 63... Bxb6 {[%clk
0:00:12.5]} 64. a8=Q {[%clk 0:00:10.9]} 64... Bc7 {[%clk 0:00:10.9]} 65. Qa6
{[%clk 0:00:10.4]} 65... Red8 {[%clk 0:00:10.9]} 66. Qc6 {[%clk 0:00:11.1]}
66... Rxb7+ {[%clk 0:00:09.7]} 67. Kc2 {[%clk 0:00:11]} 67... Rdb8 {[%clk
0:00:10.1]} 68. Qxd5+ {[%clk 0:00:11.2]} 68... Ke3 {[%clk 0:00:11.6]} 69. Qe6+
{[%clk 0:00:11.1]} 69... Kf3 {[%clk 0:00:13.1]} 70. Kd3 {[%clk 0:00:11]} 70...
Rb1 {[%clk 0:00:13.5]} 71. Qh3# {[%clk 0:00:11.5]} 1-0

[Event "*** Titled Tuesday 3|2 Blitz (Late)"]
[Site "Chess.com"]
[Date "2016.11.01"]
[Round "8"]
[White "hardingstoptry"]
[Black "Divertissement"]
[Result "1/2-1/2"]
[WhiteElo "2568"]
[BlackElo "2352"]
[TimeControl "180+2"]
[EndTime "18:50:46 PDT"]
[Termination "Game drawn by agreement"]

1. Nf3 {[%clk 0:03:02]} 1... c5 {[%clk 0:02:45.6]} 2. g3 {[%clk 0:03:03.9]} 2...
b6 {[%clk 0:02:44.8]} 3. Bg2 {[%clk 0:03:05.8]} 3... Bb7 {[%clk 0:02:46.5]} 4.
O-O {[%clk 0:03:07.7]} 4... Nf6 {[%clk 0:02:48.1]} 5. d3 {[%clk 0:03:05.3]} 5...
e6 {[%clk 0:02:49.4]} 6. Nbd2 {[%clk 0:03:06.7]} 6... Be7 {[%clk 0:02:49.6]} 7.
e4 {[%clk 0:03:07.4]} 7... d6 {[%clk 0:02:50.8]} 8. Re1 {[%clk 0:03:07.9]} 8...
O-O {[%clk 0:02:51.8]} 9. c3 {[%clk 0:03:07]} 9... Nbd7 {[%clk 0:02:52.3]} 10.
Nf1 {[%clk 0:03:07.4]} 10... Qc7 {[%clk 0:02:53.5]} 11. h4 {[%clk 0:03:07.7]}
11... c4 {[%clk 0:02:54.5]} 12. dxc4 {[%clk 0:03:02.6]} 12... Bxe4 {[%clk
0:02:53.8]} 13. Bg5 {[%clk 0:03:03.7]} 13... Qb7 {[%clk 0:02:50.7]} 14. Rxe4
{[%clk 0:03:01.3]} 14... Qxe4 {[%clk 0:02:47.8]} 15. Nd4 {[%clk 0:03:01.6]}
15... Qg6 {[%clk 0:02:47.2]} 16. Bxa8 {[%clk 0:03:02.1]} 16... Rxa8 {[%clk
0:02:48]} 17. f4 {[%clk 0:02:51.5]} 17... h6 {[%clk 0:02:45.6]} 18. Qf3 {[%clk
0:02:48.9]} 18... Rc8 {[%clk 0:02:45.1]} 19. Bxf6 {[%clk 0:02:47.3]} 19... Bxf6
{[%clk 0:02:40.4]} 20. f5 {[%clk 0:02:45.6]} 20... Bxd4+ {[%clk 0:02:38.5]} 21.
cxd4 {[%clk 0:02:37.9]} 21... Qxf5 {[%clk 0:02:34.6]} 22. Qxf5 {[%clk
0:02:36.3]} 22... exf5 {[%clk 0:02:35.4]} 23. Ne3 {[%clk 0:02:38.2]} 23... g6
{[%clk 0:02:35]} 24. Kg2 {[%clk 0:02:38.5]} 24... Nf6 {[%clk 0:02:33.5]} 25. Kf3
{[%clk 0:02:37.1]} 25... Ne4 {[%clk 0:02:33.3]} 26. b3 {[%clk 0:02:36.3]} 26...
Nf6 {[%clk 0:02:28.3]} 27. a4 {[%clk 0:02:34.2]} 27... a5 {[%clk 0:02:27.2]} 28.
Rc1 {[%clk 0:02:35]} 28... Kf8 {[%clk 0:02:23.3]} 29. Kf4 {[%clk 0:02:36]} 29...
Ke7 {[%clk 0:02:23.4]} 30. g4 {[%clk 0:02:32.4]} 30... fxg4 {[%clk 0:02:24.6]}
31. Nxg4 {[%clk 0:02:32.8]} 31... Nxg4 {[%clk 0:02:24.5]} 32. Kxg4 {[%clk
0:02:33.7]} 32... f5+ {[%clk 0:02:26]} 33. Kf3 {[%clk 0:02:26.7]} 33... Kf6
{[%clk 0:02:24.7]} 34. Re1 {[%clk 0:02:25.5]} 34... g5 {[%clk 0:02:25.2]} 35. d5
{[%clk 0:02:23.6]} 35... Kg6 {[%clk 0:01:22.8]} 36. Re6+ {[%clk 0:02:20.8]}
36... Kh5 {[%clk 0:01:24.3]} 37. hxg5 {[%clk 0:02:17.8]} 37... hxg5 {[%clk
0:01:26.2]} 38. Rxd6 {[%clk 0:02:18.3]} 38... Re8 {[%clk 0:01:24.9]} 39. Rxb6
{[%clk 0:02:15.2]} 39... f4 {[%clk 0:01:13.5]} 40. Kf2 {[%clk 0:02:11.1]} 40...
Kg4 {[%clk 0:01:10.1]} 41. d6 {[%clk 0:02:09.4]} 41... Re3 {[%clk 0:01:10.1]}
42. d7 {[%clk 0:02:06.3]} 42... Rd3 {[%clk 0:01:10.6]} 43. Rb7 {[%clk
0:02:07.2]} 43... f3 {[%clk 0:01:08.2]} 44. c5 {[%clk 0:02:08.1]} 44... Kf4
{[%clk 0:01:08.2]} 45. c6 {[%clk 0:02:06.9]} 45... Rd2+ {[%clk 0:01:09.7]} 46.
Ke1 {[%clk 0:02:05.3]} 46... Ke3 {[%clk 0:01:11.1]} 47. d8=Q {[%clk 0:02:05.8]}
47... Rxd8 {[%clk 0:01:10.7]} 48. Re7+ {[%clk 0:02:02.9]} 48... Kf4 {[%clk
0:01:11.8]} 49. c7 {[%clk 0:02:02.4]} 49... Rh8 {[%clk 0:01:02.3]} 50. Rh7
{[%clk 0:01:56.8]} 50... Re8+ {[%clk 0:00:59.9]} 51. Kf1 {[%clk 0:01:54.1]}
51... Kg3 {[%clk 0:00:58.7]} 52. Rg7 {[%clk 0:01:51.7]} 52... g4 {[%clk
0:00:58.8]} 53. Rf7 {[%clk 0:01:52.6]} 53... Rh8 {[%clk 0:00:58.8]} 54. Kg1
{[%clk 0:01:51.1]} 54... Re8 {[%clk 0:00:53.5]} 55. Kf1 {[%clk 0:01:50.3]} 55...
Rc8 {[%clk 0:00:54.1]} 56. Rh7 {[%clk 0:01:41.3]} 56... Re8 {[%clk 0:00:33.5]}
57. Rf7 {[%clk 0:01:29.1]} 57... Rh8 {[%clk 0:00:33]} 58. Kg1 {[%clk 0:01:25.7]}
58... Rc8 {[%clk 0:00:24.4]} 59. Rd7 {[%clk 0:01:19.7]} 59... Kf4 {[%clk
0:00:17.9]} 60. Kf2 {[%clk 0:01:12.9]} 60... g3+ {[%clk 0:00:18.8]} 61. Kg1
{[%clk 0:01:13.1]} 61... Rh8 {[%clk 0:00:19.4]} 62. Rf7+ {[%clk 0:01:08.4]}
62... Ke3 {[%clk 0:00:19.9]} 63. Re7+ {[%clk 0:01:08.2]} 63... Kd3 {[%clk
0:00:20.9]} 64. Rf7 {[%clk 0:01:03.8]} 64... f2+ {[%clk 0:00:21.5]} 65. Kf1
{[%clk 0:01:02.6]} 65... Kc3 {[%clk 0:00:18.5]} 66. Kg2 {[%clk 0:00:57.5]} 66...
Kxb3 {[%clk 0:00:14.2]} 67. Kxg3 {[%clk 0:00:58]} 67... Kxa4 {[%clk 0:00:15.6]}
68. Kxf2 {[%clk 0:00:56.7]} 68... Kb3 {[%clk 0:00:16.7]} 69. Ke3 {[%clk
0:00:49.6]} 69... a4 {[%clk 0:00:18.1]} 70. Kd4 {[%clk 0:00:45.1]} 70... a3
{[%clk 0:00:19.5]} 71. Rf3+ {[%clk 0:00:43.7]} 71... Kb2 {[%clk 0:00:20.2]} 72.
Kc5 {[%clk 0:00:36.5]} 72... a2 {[%clk 0:00:20.3]} 73. Rf2+ {[%clk 0:00:37]}
73... Kb1 {[%clk 0:00:21.9]} 74. Rf1+ {[%clk 0:00:34.5]} 74... Kb2 {[%clk
0:00:22.1]} 75. Rf2+ {[%clk 0:00:35.2]} 75... Kb1 {[%clk 0:00:23.6]} 76. Rf1+
{[%clk 0:00:31.5]} 76... Kb2 {[%clk 0:00:24.9]} 1/2-1/2

[Event "*** Titled Tuesday 3|2 Blitz (Late)"]
[Site "Chess.com"]
[Date "2016.11.01"]
[Round "9"]
[White "howitzer14"]
[Black "platy3"]
[Result "1/2-1/2"]
[WhiteElo "2774"]
[BlackElo "2703"]
[TimeControl "180+2"]
[EndTime "18:52:45 PDT"]
[Termination "Game drawn by agreement"]

1. e4 {[%clk 0:03:02]} 1... c5 {[%clk 0:03:00.5]} 2. c3 {[%clk 0:03:02.8]} 2...
Nf6 {[%clk 0:03:00.3]} 3. e5 {[%clk 0:03:03.5]} 3... Nd5 {[%clk 0:03:01.7]} 4.
Nf3 {[%clk 0:03:05.4]} 4... Nc6 {[%clk 0:03:02.8]} 5. Bc4 {[%clk 0:03:05.5]}
5... Nb6 {[%clk 0:03:03.6]} 6. Bb3 {[%clk 0:03:06.2]} 6... c4 {[%clk 0:03:05.3]}
7. Bc2 {[%clk 0:03:06.5]} 7... Qc7 {[%clk 0:03:07]} 8. Qe2 {[%clk 0:03:07.8]}
8... g5 {[%clk 0:03:08.6]} 9. O-O {[%clk 0:03:07.3]} 9... g4 {[%clk 0:03:05.9]}
10. Ng5 {[%clk 0:02:57.5]} 10... Qxe5 {[%clk 0:02:58]} 11. Qxg4 {[%clk
0:02:48.6]} 1/2-1/2

[Event "*** Titled Tuesday 3|2 Blitz (Late)"]
[Site "Chess.com"]
[Date "2016.11.01"]
[Round "9"]
[White "Evgeny_Levin"]
[Black "TheSovietChess"]
[Result "1-0"]
[WhiteElo "2719"]
[BlackElo "2548"]
[TimeControl "180+2"]
[EndTime "18:55:01 PDT"]
[Termination "Evgeny_Levin won by resignation"]

1. d4 {[%clk 0:02:56.3]} 1... Nf6 {[%clk 0:03:00.1]} 2. c4 {[%clk 0:02:55]} 2...
g6 {[%clk 0:03:00]} 3. Nc3 {[%clk 0:02:52.9]} 3... d5 {[%clk 0:03:00.9]} 4. cxd5
{[%clk 0:02:50.2]} 4... Nxd5 {[%clk 0:02:59.6]} 5. e4 {[%clk 0:02:41.8]} 5...
Nxc3 {[%clk 0:02:59.1]} 6. bxc3 {[%clk 0:02:43.7]} 6... Bg7 {[%clk 0:03:01]} 7.
Bc4 {[%clk 0:02:41]} 7... c5 {[%clk 0:03:01.6]} 8. Ne2 {[%clk 0:02:41]} 8... Nc6
{[%clk 0:03:01]} 9. Be3 {[%clk 0:02:38.3]} 9... cxd4 {[%clk 0:03:00.9]} 10. cxd4
{[%clk 0:02:38.2]} 10... Qa5+ {[%clk 0:03:00.9]} 11. Bd2 {[%clk 0:02:33.8]}
11... Qd8 {[%clk 0:03:00.3]} 12. Bc3 {[%clk 0:02:31.8]} 12... O-O {[%clk
0:02:59.5]} 13. O-O {[%clk 0:02:31.5]} 13... Bg4 {[%clk 0:02:58.3]} 14. f3
{[%clk 0:02:31.5]} 14... Bd7 {[%clk 0:02:57.9]} 15. Qd2 {[%clk 0:02:31.9]} 15...
a6 {[%clk 0:02:57.8]} 16. a4 {[%clk 0:02:29.4]} 16... Rc8 {[%clk 0:02:57.1]} 17.
Rfd1 {[%clk 0:02:12]} 17... Qc7 {[%clk 0:02:55.6]} 18. Rac1 {[%clk 0:02:09.1]}
18... Rfd8 {[%clk 0:02:52.8]} 19. Kh1 {[%clk 0:01:53.2]} 19... Qb8 {[%clk
0:02:49.5]} 20. Rb1 {[%clk 0:01:51.7]} 20... Qc7 {[%clk 0:02:49.5]} 21. Rdc1
{[%clk 0:01:49]} 21... e6 {[%clk 0:02:48.8]} 22. Ba2 {[%clk 0:01:38.8]} 22...
Rb8 {[%clk 0:02:43]} 23. d5 {[%clk 0:01:37.5]} 23... Rdc8 {[%clk 0:02:44.2]} 24.
dxc6 {[%clk 0:01:31.5]} 24... Bxc3 {[%clk 0:02:44.2]} 25. Qxd7 {[%clk 0:01:28]}
25... Ba5 {[%clk 0:02:43.8]} 1-0

[Event "*** Titled Tuesday 3|2 Blitz (Late)"]
[Site "Chess.com"]
[Date "2016.11.01"]
[Round "9"]
[White "pKiLz5Rn9b"]
[Black "chessking2151"]
[Result "0-1"]
[WhiteElo "2490"]
[BlackElo "2351"]
[TimeControl "180+2"]
[EndTime "18:56:30 PDT"]
[Termination "chessking2151 won by resignation"]

1. e4 {[%clk 0:03:01.9]} 1... e5 {[%clk 0:03:00.1]} 2. Nf3 {[%clk 0:03:02.4]}
2... Nc6 {[%clk 0:03:01.1]} 3. Bc4 {[%clk 0:03:04]} 3... Nf6 {[%clk 0:03:01.7]}
4. d3 {[%clk 0:03:05.3]} 4... Be7 {[%clk 0:03:02.5]} 5. O-O {[%clk 0:03:05.7]}
5... O-O {[%clk 0:03:03.4]} 6. Re1 {[%clk 0:03:07.3]} 6... d6 {[%clk 0:03:04.9]}
7. a4 {[%clk 0:03:08.9]} 7... Be6 {[%clk 0:03:03.8]} 8. Nc3 {[%clk 0:03:10.4]}
8... h6 {[%clk 0:02:59.6]} 9. h3 {[%clk 0:03:11.4]} 9... a6 {[%clk 0:02:58.3]}
10. Be3 {[%clk 0:03:10.1]} 10... Qd7 {[%clk 0:02:56.3]} 11. Qe2 {[%clk
0:03:09.8]} 11... Na5 {[%clk 0:02:56.1]} 12. Bxe6 {[%clk 0:03:08.9]} 12... fxe6
{[%clk 0:02:55.2]} 13. Rad1 {[%clk 0:03:10.8]} 13... Nc6 {[%clk 0:02:55.7]} 14.
d4 {[%clk 0:03:11.2]} 14... exd4 {[%clk 0:02:54.1]} 15. Nxd4 {[%clk 0:03:13.1]}
15... e5 {[%clk 0:02:50.7]} 16. Nf5 {[%clk 0:03:11.9]} 16... Bd8 {[%clk
0:02:46.9]} 17. g4 {[%clk 0:03:13.1]} 17... Kh8 {[%clk 0:02:38.2]} 18. f3 {[%clk
0:03:14.3]} 18... Nh7 {[%clk 0:02:37.1]} 19. Kg2 {[%clk 0:03:14.4]} 19... Qf7
{[%clk 0:02:29.3]} 20. Nd5 {[%clk 0:03:15]} 20... Bg5 {[%clk 0:02:24.1]} 21. h4
{[%clk 0:03:16.4]} 21... Bxe3 {[%clk 0:02:17.9]} 22. Qxe3 {[%clk 0:03:18.3]}
22... Nd8 {[%clk 0:02:17.3]} 23. a5 {[%clk 0:03:17.5]} 23... Ne6 {[%clk
0:02:17.5]} 24. Qb3 {[%clk 0:03:15.8]} 24... Rab8 {[%clk 0:02:16.8]} 25. Kg3
{[%clk 0:03:15.9]} 25... Nf6 {[%clk 0:01:06.2]} 26. Nxc7 {[%clk 0:03:09.6]}
26... Nxc7 {[%clk 0:01:01.8]} 27. Qxf7 {[%clk 0:03:11.1]} 27... Rxf7 {[%clk
0:01:02.7]} 28. Nxd6 {[%clk 0:03:13]} 28... Rd7 {[%clk 0:01:03.3]} 29. Nc4
{[%clk 0:03:14.5]} 29... Re7 {[%clk 0:00:52.4]} 30. Rd6 {[%clk 0:03:12]} 30...
Nb5 {[%clk 0:00:51.2]} 31. Rb6 {[%clk 0:03:12.5]} 31... Rc8 {[%clk 0:00:50.8]}
32. b3 {[%clk 0:03:13.3]} 32... Nd4 {[%clk 0:00:50.6]} 33. Nd6 {[%clk
0:03:11.4]} 33... Rxc2 {[%clk 0:00:47.8]} 34. Nf5 {[%clk 0:03:08.7]} 34... Nxf5+
{[%clk 0:00:45.9]} 35. exf5 {[%clk 0:03:10.6]} 35... Nd5 {[%clk 0:00:35.5]} 36.
Re6 {[%clk 0:02:59.7]} 36... Nf4 {[%clk 0:00:32]} 37. R1xe5 {[%clk 0:02:59.9]}
37... Nxe6 {[%clk 0:00:32.8]} 38. fxe6 {[%clk 0:03:01.5]} 38... Rc6 {[%clk
0:00:33.9]} 0-1

[Event "*** Titled Tuesday 3|2 Blitz (Late)"]
[Site "Chess.com"]
[Date "2016.11.01"]
[Round "9"]
[White "ZEN-22"]
[Black "nihalsarin"]
[Result "0-1"]
[WhiteElo "2222"]
[BlackElo "2504"]
[TimeControl "180+2"]
[EndTime "18:56:47 PDT"]
[Termination "nihalsarin won by resignation"]

1. e3 {[%clk 0:03:01.9]} 1... d5 {[%clk 0:02:58.9]} 2. Ne2 {[%clk 0:03:03.8]}
2... c5 {[%clk 0:02:59.9]} 3. d4 {[%clk 0:03:04.6]} 3... Nc6 {[%clk 0:03:01.1]}
4. c4 {[%clk 0:03:06]} 4... dxc4 {[%clk 0:03:00.6]} 5. d5 {[%clk 0:03:06.8]}
5... Ne5 {[%clk 0:03:01.9]} 6. Nf4 {[%clk 0:03:03.4]} 6... g5 {[%clk 0:03:02.8]}
7. Nh3 {[%clk 0:02:53.6]} 7... Bxh3 {[%clk 0:03:01.6]} 8. gxh3 {[%clk
0:02:54.3]} 8... Nf6 {[%clk 0:03:01.1]} 9. Nc3 {[%clk 0:02:54]} 9... a6 {[%clk
0:02:59.6]} 10. f4 {[%clk 0:02:49.9]} 10... gxf4 {[%clk 0:03:00.7]} 11. exf4
{[%clk 0:02:51.5]} 11... Ng6 {[%clk 0:03:01.5]} 12. Bxc4 {[%clk 0:02:51.6]}
12... Qd6 {[%clk 0:02:52.2]} 13. f5 {[%clk 0:02:37.2]} 13... Ne5 {[%clk
0:02:52.3]} 14. Bf4 {[%clk 0:02:38.2]} 14... Nd3+ {[%clk 0:02:21]} 15. Qxd3
{[%clk 0:02:34]} 15... Qxf4 {[%clk 0:02:22.9]} 16. a4 {[%clk 0:02:31.4]} 16...
Bh6 {[%clk 0:02:21.4]} 17. Rf1 {[%clk 0:02:30.9]} 17... Qh4+ {[%clk 0:02:21.4]}
18. Ke2 {[%clk 0:02:31.2]} 18... O-O-O {[%clk 0:02:11.7]} 19. Rg1 {[%clk
0:02:26]} 19... Nd7 {[%clk 0:02:09.2]} 20. Qe4 {[%clk 0:02:13.9]} 20... Qxh3
{[%clk 0:02:04.2]} 21. d6 {[%clk 0:01:58.7]} 21... exd6 {[%clk 0:02:02.2]} 22.
Bxf7 {[%clk 0:01:57.2]} 22... Kb8 {[%clk 0:01:46.2]} 23. Nd5 {[%clk 0:01:52.4]}
23... Qxh2+ {[%clk 0:01:39.5]} 24. Rg2 {[%clk 0:01:52.8]} 24... Qh3 {[%clk
0:01:37.8]} 25. Rh1 {[%clk 0:01:43.1]} 25... Qxh1 {[%clk 0:01:33.7]} 26. Ne7
{[%clk 0:01:31.7]} 26... Nf6 {[%clk 0:01:22.8]} 27. Qf3 {[%clk 0:01:31.3]} 27...
Rde8 {[%clk 0:01:15.5]} 28. Bxe8 {[%clk 0:01:31.1]} 28... Rxe8 {[%clk
0:01:15.5]} 29. Kd3 {[%clk 0:01:31.8]} 29... Qb1+ {[%clk 0:01:12.3]} 30. Kc3
{[%clk 0:01:31.9]} 30... Rxe7 {[%clk 0:01:11.2]} 0-1